bitfinex-derivatives/quotes_ETHF0:USTF0_20250616
["timestamp","ask_amount","ask_price","bid_price","bid_amount"]
[1750085004559,33.01320775,2646.3,2645.5,0.75579]
[1750085004858,0.75574,2645.7,2645.6,0.75575]
[1750085005158,0.75576,2645.6,2645.5,2.07667]
[1750085005549,33.76695775,2645.7,2645.6,0.75576]
[1750085005954,3.21346326,2645.9,2645.8,0.7557]
[1750085006147,43.94634101,2645.9,2645.8,0.7557]
[1750085006353,43.19067101,2645.9,2645.8,0.7557]
[1750085006553,33.01887101,2645.9,2645.8,0.7557]
[1750085006956,0.00566326,2645.9,2645.8,0.7557]
[1750085008560,24.73666326,2645.9,2645.8,0.7557]
[1750085008762,0.00566326,2645.9,2645.8,0.7557]
[1750085008961,18.44900775,2646.6,2646.5,0.7555]
[1750085009264,18.44900775,2646.6,2646.4,0.75551]
[1750085009265,43.17600775,2646.6,2646.4,0.75551]
[1750085009568,8.27920775,2646.5,2646.4,0.75551]
[1750085009951,33.00720775,2646.5,2646.4,0.75551]
[1750085010459,8.27920775,2646.5,2646.4,0.75551]
[1750085011060,0.00566326,2646.7,2646.6,0.75547]
[1750085011261,24.73066326,2646.7,2646.2,0.00566326]
[1750085011561,9.03476775,2646.3,2646.2,0.00566326]
[1750085011773,0.75566,2646.0,2645.9,0.75565]
[1750085012057,0.75567,2645.9,2645.8,0.82307406]
[1750085012367,7.71867,2645.9,2645.8,0.82307406]
[1750085012763,7.71867,2645.9,2645.8,0.7557]
[1750085012971,6.963,2645.9,2645.8,0.7557]
[1750085013263,7.71867,2645.9,2645.8,0.7557]
[1750085013463,6.963,2645.9,2645.8,0.7557]
[1750085013664,7.71867,2645.9,2645.8,0.7557]
[1750085013969,6.963,2645.9,2645.8,0.7557]
[1750085014269,8.27920775,2646.0,2645.9,0.75567]
[1750085014456,40.71985775,2646.0,2645.9,0.75567]
[1750085014655,39.96420775,2646.0,2645.7,0.667]
[1750085014871,0.7557,2645.9,2645.8,0.75568]
[1750085015056,40.71987775,2646.0,2645.9,0.75567]
[1750085015368,0.7557,2645.8,2645.7,1.42272]
[1750085015660,0.7557,2645.8,2645.7,0.75571]
[1750085016056,0.75572,2645.8,2645.7,0.75571]
[1750085016252,0.75569,2645.9,2645.8,0.75568]
[1750085016458,12.24266775,2646.0,2645.9,0.75567]
[1750085016658,0.7557,2645.9,2645.8,0.75568]
[1750085016866,9.03490775,2645.9,2645.8,0.75568]
[1750085017059,0.75572,2645.8,2645.7,0.75571]
[1750085017368,0.75575,2645.7,2645.6,0.75574]
[1750085017561,25.3304,2645.7,2645.6,0.75574]
[1750085017959,25.3304,2645.7,2645.5,0.75576]
[1750085017960,0.75576,2645.6,2645.5,0.75576]
[1750085018275,8.27920775,2645.6,2645.5,0.75576]
[1750085018563,15.99896775,2645.6,2645.5,0.75576]
[1750085018961,15.24320775,2645.6,2645.5,0.75576]
[1750085019162,0.75581,2645.4,2645.3,0.06737406]
[1750085019369,25.46681,2645.4,2645.3,0.82321406]
[1750085019565,25.46681,2645.4,2645.3,0.06737406]
[1750085019869,25.46681,2645.4,2645.3,0.75584]
[1750085020061,0.75586,2645.3,2645.2,0.75585]
[1750085020260,8.94280775,2645.3,2645.2,0.75585]
[1750085020963,9.69864775,2645.3,2645.2,0.75585]
[1750085022168,0.75589,2645.2,2645.1,0.75587]
[1750085022363,0.75589,2645.2,2644.9,1.2693]
[1750085022364,0.75596,2645.0,2644.9,0.75593]
[1750085022669,33.74016775,2645.0,2644.9,0.75593]
[1750085022861,0.75598,2644.9,2644.8,0.75596]
[1750085023365,32.98420775,2645.0,2644.9,0.75595]
[1750085023560,3.2078,2645.3,2645.2,0.75587]
[1750085023755,0.00566326,2645.4,2645.1,1.88974]
[1750085023964,0.00566326,2645.4,2645.3,0.75584]
[1750085023965,24.70766326,2645.4,2645.3,0.75584]
[1750085024565,0.75585,2645.3,2645.0,3.818]
[1750085024765,6.966,2645.2,2645.1,0.7559]
[1750085025066,16.00107775,2645.2,2645.1,0.7559]
[1750085025260,16.00107775,2645.2,2644.7,6.35132]
[1750085025261,15.24520775,2645.2,2644.7,6.35132]
[1750085025469,15.24520775,2645.2,2645.1,0.7559]
[1750085025470,7.72189,2645.2,2645.1,0.7559]
[1750085025767,31.667,2645.2,2644.8,1.349]
[1750085025969,0.75595,2645.0,2644.9,0.75592]
[1750085026470,8.27920775,2645.0,2644.9,0.75595]
[1750085026674,9.03513775,2645.0,2644.9,0.75595]
[1750085027068,8.27920775,2645.0,2644.9,0.75595]
[1750085027267,1.42295,2645.3,2645.2,0.75587]
[1750085027458,40.61030775,2645.3,2645.2,0.75587]
[1750085027664,39.94320775,2645.3,2645.2,0.75587]
[1750085027967,15.24520775,2645.3,2645.2,0.75587]
[1750085028163,39.94220775,2645.3,2645.2,0.75587]
[1750085028364,0.00566326,2645.4,2645.3,0.75584]
[1750085028567,0.00566326,2645.4,2645.3,3.96364]
[1750085029666,0.00566326,2645.4,2645.3,0.75584]
[1750085029866,0.00566326,2645.4,2645.3,3.96364]
[1750085030268,24.69766326,2645.4,2645.3,3.96364]
[1750085030669,0.00566326,2645.4,2645.3,3.96364]
[1750085030870,24.69466326,2645.4,2645.3,3.96364]
[1750085031867,0.00566326,2645.4,2645.3,3.96364]
[1750085032165,24.69266326,2645.4,2645.3,3.96364]
[1750085032374,0.00566326,2645.4,2645.3,3.96364]
[1750085033678,8.28487101,2645.4,2645.3,3.96364]
[1750085034371,9.04068101,2645.4,2645.3,0.75584]
[1750085034572,9.04068101,2645.4,2645.3,3.96364]
[1750085034573,8.28487101,2645.4,2645.3,3.96364]
[1750085034970,9.04068101,2645.4,2645.3,0.75584]
[1750085035365,0.75587,2645.3,2645.2,0.75586]
[1750085035577,8.28487101,2645.4,2645.3,0.75584]
[1750085035872,9.26784715,2645.4,2645.3,0.75584]
[1750085036081,9.04068101,2645.4,2645.3,0.76632596]
[1750085036671,10.02341519,2645.4,2645.3,0.01048596]
[1750085036970,11.26251519,2645.4,2645.3,0.01048596]
[1750085037167,14.47031519,2645.4,2645.3,0.01048596]
[1750085037372,0.7559,2645.1,2645.0,3.96372]
[1750085037578,0.75595,2644.9,2644.8,0.75598]
[1750085037770,0.75594,2645.0,2644.9,0.75595]
[1750085037966,8.27920775,2645.0,2644.9,3.96375]
[1750085038179,9.03506775,2645.3,2645.2,0.75587]
[1750085038369,0.98268004,2645.3,2645.2,3.96367]
[1750085038569,0.98268004,2645.3,2645.2,0.75587]
[1750085038570,39.87020775,2645.3,2645.2,0.75587]
[1750085038872,39.87020775,2645.3,2645.1,0.75588]
[1750085038873,0.75588,2645.2,2645.1,0.75588]
[1750085039079,39.87020775,2645.3,2645.2,0.75587]
[1750085039374,0.75588,2645.2,2645.1,0.75588]
[1750085039579,1.73885476,2645.2,2645.1,0.75588]
[1750085039771,0.98297476,2645.2,2645.1,0.75588]
[1750085039972,0.7559,2645.1,2645.0,0.75591]
[1750085040172,8.27920775,2645.3,2644.9,3.2078]
[1750085040368,0.75597,2644.9,2644.8,0.75596]
[1750085040568,31.588,2645.1,2644.7,1.2581]
[1750085040772,31.588,2645.1,2645.0,0.75593]
[1750085040970,31.586,2645.1,2645.0,0.75593]
[1750085041377,31.586,2645.1,2644.9,3.96375]
[1750085041580,9.26346079,2645.0,2644.9,0.75596]
[1750085041795,12.47126079,2645.0,2644.0,3.2078]
[1750085042076,8.27920775,2644.5,2644.4,1.2581]
[1750085042270,34.68353079,2644.5,2644.4,1.4069]
[1750085042468,34.68353079,2644.5,2644.4,0.6508]
[1750085042669,34.68353079,2644.5,2644.4,1.4069]
[1750085042881,41.60453079,2644.5,2644.4,1.4069]
[1750085043079,41.60453079,2644.5,2644.4,0.6508]
[1750085043777,41.60453079,2644.5,2644.0,4.4659]
[1750085043778,0.75618,2644.1,2644.0,2.0143]
[1750085043979,33.69638775,2644.1,2644.0,1.2581]
[1750085044380,33.69638775,2644.1,2643.7,0.56737406]
[1750085044381,41.75168775,2644.1,2643.7,0.56737406]
[1750085044584,9.03547775,2643.8,2643.7,0.56737406]
[1750085044886,34.67813088,2643.8,2643.7,0.56737406]
[1750085045375,33.31992313,2643.8,2643.7,0.5]
[1750085045577,32.33627,2643.8,2643.7,0.5]
[1750085045780,33.32052492,2643.8,2643.7,0.5]
[1750085046270,8.27920775,2643.9,2643.7,0.5]
[1750085046471,31.581,2643.8,2643.7,0.5]
[1750085046673,31.581,2643.8,2643.7,1.27727192]
[1750085047189,32.33726,2643.8,2643.7,1.27727192]
[1750085047373,8.27920775,2643.9,2643.8,0.75626]
[1750085047775,39.85720775,2643.9,2643.8,2.67533192]
[1750085048482,6.92866326,2644.0,2643.9,0.75624]
[1750085048681,0.00566326,2644.0,2643.9,1.98364]
[1750085048880,24.66266326,2644.0,2643.9,2.00461192]
[1750085049081,0.00566326,2644.0,2643.9,2.00461192]
[1750085049282,24.66266326,2644.0,2643.9,2.00461192]
[1750085049889,3.26e-06,2644.0,2643.9,7.00461192]
[1750085051776,15.20220775,2644.8,2644.7,0.75601]
[1750085051976,39.85320775,2644.8,2644.2,5.09816]
[1750085052287,31.574,2644.8,2644.5,0.75604]
[1750085052481,0.75603,2644.7,2644.5,0.75604]
[1750085052682,32.8432,2644.8,2644.3,2.0031]
[1750085052983,0.75604,2644.7,2644.6,0.75604]
[1750085053182,0.98445266,2644.7,2644.5,0.02097192]
[1750085053383,32.8432,2644.8,2644.5,0.02097192]
[1750085053384,9.03524775,2644.6,2644.5,0.02097192]
[1750085053581,9.03524775,2644.6,2644.5,0.77704192]
[1750085053582,12.88354775,2644.6,2644.5,0.77704192]
[1750085053780,17.88354775,2644.6,2644.5,0.02097192]
[1750085054184,0.75609,2644.5,2644.4,0.75609]
[1750085054488,0.75611,2644.4,2644.3,0.7561]
[1750085054688,15.95831775,2644.4,2644.3,0.7561]
[1750085055489,6.923,2644.4,2644.3,0.7561]
[1750085055990,8.27920775,2644.5,2644.4,0.7561]
[1750085056190,39.84620775,2644.5,2644.4,0.7561]
[1750085056887,39.84520775,2644.5,2644.4,0.7561]
[1750085057081,8.27920775,2644.5,2644.4,0.7561]
[1750085057279,15.20220775,2644.7,2644.6,0.75604]
[1750085057584,31.563,2644.7,2644.6,0.75604]
[1750085058181,11.49267101,2644.9,2644.8,0.75598]
[1750085058384,18.41567101,2644.9,2644.8,0.75598]
[1750085058581,3.21346326,2644.9,2644.8,0.75598]
[1750085058783,3.21346326,2644.9,2644.8,2.69218]
[1750085059087,24.64366326,2644.9,2644.8,2.69218]
[1750085059292,0.00566326,2644.9,2644.8,2.69218]
[1750085059681,0.00566326,2644.9,2644.8,5.89998]
[1750085060789,0.75578,2645.5,2645.4,0.75578]
[1750085060993,40.54998775,2645.5,2645.4,0.75578]
[1750085061291,0.75584,2645.4,2645.3,0.75583]
[1750085061592,8.27920775,2645.4,2645.3,0.75583]
[1750085061786,32.91020775,2645.4,2645.3,0.80794594]
[1750085062488,33.66601775,2645.4,2645.3,0.80794594]
[1750085062787,32.91020775,2645.4,2645.3,0.80794594]
[1750085063789,33.66601775,2645.4,2645.3,0.80794594]
[1750085064184,9.03501775,2645.4,2645.3,0.80794594]
[1750085064391,33.65801775,2645.4,2645.3,0.80794594]
[1750085064689,33.65801775,2645.4,2645.3,0.05211594]
[1750085064883,35.89592231,2645.4,2645.3,0.05211594]
[1750085065090,32.61671456,2645.4,2645.3,0.05211594]
[1750085065880,32.61471456,2645.4,2645.3,0.05211594]
[1750085066089,7.86610456,2645.4,2645.3,0.80795594]
[1750085066387,40.53701775,2645.4,2645.3,0.80795594]
[1750085067190,15.91701775,2645.4,2645.3,0.80795594]
[1750085067393,39.77920775,2645.4,2645.3,0.80795594]
[1750085067691,39.77720775,2645.4,2645.3,0.80795594]
[1750085068893,40.53301775,2645.4,2645.3,0.80795594]
[1750085069296,39.77720775,2645.4,2645.3,0.80795594]
[1750085069486,40.53301775,2645.4,2645.3,0.80795594]
[1750085070495,3.21346326,2645.6,2645.5,0.75578]
[1750085070697,43.96765496,2645.6,2645.5,0.75578]
[1750085070894,43.96765496,2645.6,2645.5,0.80789594]
[1750085071086,0.75586,2645.4,2645.3,0.75582]
[1750085071286,0.75587,2645.3,2645.2,0.75584]
[1750085071590,0.75587,2645.2,2645.1,0.00566326]
[1750085071804,0.75598,2644.8,2644.7,1.41599]
[1750085071993,25.36098,2644.8,2644.7,1.41599]
[1750085072793,0.75603,2644.7,2644.6,0.75601]
[1750085073596,0.75604,2644.6,2644.5,0.76171326]
[1750085073894,32.88120775,2644.6,2644.5,0.76171326]
[1750085074097,33.63724775,2644.6,2644.5,0.76171326]
[1750085074490,9.03524775,2644.6,2644.5,0.76171326]
[1750085074793,40.51624775,2644.6,2644.5,0.00566326]
[1750085074991,45.74458976,2644.6,2644.3,0.75611]
[1750085075189,0.98438201,2644.5,2644.4,0.7561]
[1750085075389,31.479,2644.5,2644.4,0.7561]
[1750085075591,31.479,2644.5,2644.4,2.0583]
[1750085076093,8.27920775,2644.7,2644.6,0.75604]
[1750085076291,8.89960775,2645.0,2644.9,0.75595]
[1750085076593,9.26416972,2645.0,2644.9,0.75595]
[1750085076897,32.87520775,2645.0,2644.9,0.75595]
[1750085077086,3.2078,2645.4,2644.9,0.75595]
[1750085077288,0.98495407,2645.3,2645.2,0.75587]
[1750085077484,15.16120775,2645.5,2645.4,0.75581]
[1750085077685,0.00566326,2645.6,2645.5,0.75578]
[1750085077890,40.74466218,2645.6,2645.5,0.75578]
[1750085079094,24.59566326,2645.6,2645.5,0.75578]
[1750085079898,25.57991054,2645.6,2645.3,0.6505]
[1750085080202,8.27920775,2645.4,2645.3,1.40634]
[1750085080392,32.86720775,2645.4,2645.3,1.40634]
[1750085080698,0.00566326,2645.6,2645.5,0.75578]
[1750085081000,24.59166326,2645.6,2645.5,0.75578]
[1750085082097,32.87087101,2645.6,2645.5,0.75578]
[1750085083502,0.00566326,2645.6,2645.5,3.96358]
[1750085083701,43.554,2646.1,2645.5,3.96358]
[1750085083702,50.436,2646.1,2646.0,0.75564]
[1750085083898,31.461,2646.1,2646.0,0.75564]
[1750085084299,6.882,2646.1,2646.0,2.06884]
[1750085084493,31.459,2646.1,2646.0,2.06884]
[1750085084694,8.28487101,2646.3,2646.2,0.75558]
[1750085085001,32.85987101,2646.3,2646.2,0.75558]
[1750085085303,0.00566326,2646.3,2646.2,0.75558]
[1750085085506,0.00566326,2646.3,2646.2,3.96338]
[1750085087005,0.00566326,2646.3,2646.1,0.75559]
[1750085087203,8.27920775,2646.2,2646.1,0.75561]
[1750085087609,15.15920775,2646.2,2645.7,0.75571]
[1750085087908,8.27920775,2645.8,2645.7,0.75571]
[1750085088103,39.72520775,2645.8,2645.6,0.6352]
[1750085088311,39.72520775,2645.8,2645.3,3.21346326]
[1750085088312,42.93300775,2645.8,2645.3,3.21346326]
[1750085088501,0.75581,2645.4,2645.3,3.21346326]
[1750085088704,25.32081,2645.4,2645.3,3.96930326]
[1750085088998,24.565,2645.4,2645.3,3.96930326]
[1750085089401,24.565,2645.4,2645.3,5.26500326]
[1750085089601,24.562,2645.5,2645.4,0.75581]
[1750085090506,24.562,2645.5,2645.4,2.05151]
[1750085092211,9.03491775,2645.8,2645.7,0.75572]
[1750085092409,39.67820775,2645.8,2645.7,0.75572]
[1750085093005,40.43390775,2645.8,2645.7,0.75572]
[1750085093509,0.75573,2645.7,2645.6,0.75573]
[1750085093706,0.75577,2645.6,2645.5,0.75577]
[1750085094011,42.88600775,2645.8,2645.3,3.21346326]
[1750085094314,42.88600775,2645.8,2645.5,0.75576]
[1750085094315,0.75576,2645.6,2645.5,0.75576]
[1750085095110,0.75566,2646.0,2645.5,1.88946]
[1750085095300,0.75566,2646.0,2645.9,0.75567]
[1750085095503,0.7557,2645.9,2645.8,0.75569]
[1750085095813,0.7557,2645.8,2645.7,0.7557]
[1750085096018,25.3067,2645.8,2645.7,0.7557]
[1750085096207,24.551,2645.8,2645.7,0.7557]
[1750085096406,7.59768,2645.9,2645.8,0.7557]
[1750085096608,32.14768,2645.9,2645.8,0.7557]
[1750085096808,0.75572,2645.8,2645.7,0.75571]
[1750085097910,9.03492775,2645.8,2645.7,0.75571]
[1750085099415,0.75572,2645.7,2645.6,3.96354]
[1750085099603,0.75575,2645.6,2645.5,0.75577]
[1750085099808,33.57695775,2645.6,2645.5,0.75577]
[1750085100317,0.7558,2645.5,2645.4,0.75579]
[1750085100617,0.75581,2645.4,2645.3,0.76148326]
[1750085100918,0.75581,2645.4,2645.0,0.6352]
[1750085100919,0.7559,2645.1,2645.0,0.6352]
[1750085101113,0.7559,2645.1,2644.9,0.75593]
[1750085101114,0.75599,2644.8,2644.7,0.82336406]
[1750085101309,25.29499,2644.8,2644.7,0.82336406]
[1750085101505,32.81820775,2644.8,2644.7,0.82336406]
[1750085101711,0.75575,2645.6,2644.7,5.06737406]
[1750085102011,24.537,2645.5,2645.4,0.75581]
[1750085102413,25.29278,2645.5,2645.4,0.75581]
[1750085102610,33.57198775,2645.5,2645.4,0.75581]
[1750085102810,32.81620775,2645.5,2645.2,1.261]
[1750085103014,0.75584,2645.3,2645.2,0.632]
[1750085103917,8.2078,2645.3,2644.6,3.2078]
[1750085104218,0.75615,2644.2,2644.1,1.38816]
[1750085104419,33.57035775,2644.2,2644.1,0.632]
[1750085104822,0.75625,2643.9,2643.8,0.75625]
[1750085105012,8.27920775,2643.9,2643.8,0.75625]
[1750085105313,32.81220775,2643.9,2643.8,0.75625]
[1750085106115,33.56845775,2643.9,2643.7,3.7078]
[1750085106313,33.56845775,2643.9,2643.8,0.75627]
[1750085106514,0.75627,2643.8,2643.7,0.5]
[1750085107218,8.27920775,2644.1,2643.7,0.5]
[1750085107419,15.12220775,2643.8,2643.7,1.2563]
[1750085107620,8.27920775,2643.8,2643.7,1.2563]
[1750085108015,9.03547775,2643.8,2643.7,1.2563]
[1750085108517,9.03547775,2643.8,2643.7,0.5]
[1750085110036,9.03547775,2643.8,2643.7,1.2563]
[1750085110236,9.03547775,2643.8,2643.7,0.5]
[1750085110931,8.27920775,2644.1,2644.0,0.75619]
[1750085111135,8.89587101,2644.4,2643.7,0.5]
[1750085111437,8.27920775,2644.1,2643.8,4.5041]
[1750085111636,8.27920775,2644.1,2644.0,0.75621]
[1750085112238,24.53,2644.1,2644.0,0.75621]
[1750085112935,0.00566326,2644.4,2644.3,0.75612]
[1750085113135,24.53466326,2644.4,2644.3,0.75612]
[1750085113335,25.29076326,2644.4,2644.3,0.75612]
[1750085113738,24.53466326,2644.4,2644.3,0.75612]
[1750085113942,0.00566326,2644.4,2644.3,0.75612]
[1750085114541,0.00566326,2644.4,2644.3,3.35232]
[1750085115937,24.522,2644.8,2644.5,1.89016]
[1750085116138,24.522,2644.8,2644.7,0.75601]
[1750085116338,25.27798,2644.8,2644.7,0.75601]
[1750085116837,24.522,2644.8,2644.7,0.75601]
[1750085117339,32.80120775,2644.8,2644.5,0.00566326]
[1750085117549,0.75604,2644.6,2644.5,0.76172326]
[1750085117845,0.75604,2644.6,2644.5,0.00566326]
[1750085118142,7.60104,2644.6,2644.5,0.00566326]
[1750085118348,7.60104,2644.6,2644.5,0.76173326]
[1750085118653,7.60104,2644.7,2644.6,0.75602]
[1750085118946,31.361,2644.7,2644.6,0.75602]
[1750085119437,31.361,2644.7,2644.6,1.98932]
[1750085119938,6.809,2644.9,2644.6,4.4411]
[1750085120247,6.809,2644.9,2644.8,0.75598]
[1750085120444,31.323,2644.9,2644.8,0.75598]
[1750085120842,6.809,2644.9,2644.8,0.80809594]
[1750085121048,31.32,2644.9,2644.8,0.80809594]
[1750085121648,3.2078,2645.9,2645.3,1.8896]
[1750085121835,0.6572,2646.0,2645.9,0.75567]
[1750085122041,8.93640775,2646.0,2645.9,4.01558594]
[1750085122239,33.44540775,2646.0,2645.9,0.80778594]
[1750085122546,32.78820775,2646.0,2645.9,0.80778594]
[1750085122840,32.78820775,2646.0,2645.9,4.01558594]
[1750085123044,24.509,2646.0,2645.9,4.01558594]
[1750085123241,6.81466326,2646.2,2646.1,0.75561]
[1750085123546,39.60087101,2646.2,2645.9,3.2655792]
[1750085123734,0.75563,2646.1,2646.0,0.75563]
[1750085123938,0.75564,2646.0,2645.9,0.0577792]
[1750085124134,0.75564,2646.0,2645.6,3.2078]
[1750085124135,2.06601,2646.1,2646.0,0.05211594]
[1750085124335,9.03481775,2646.1,2646.0,0.05211594]
[1750085124850,39.58920775,2646.1,2646.0,0.80775594]
[1750085125450,40.34481775,2646.1,2646.0,0.80775594]
[1750085125841,9.03481775,2646.1,2646.0,0.80775594]
[1750085126252,15.08720775,2646.1,2646.0,0.80775594]
[1750085126548,0.75567,2645.9,2645.8,0.00566326]
[1750085126742,0.75567,2645.9,2645.8,0.76135326]
[1750085128145,0.75566,2646.0,2645.9,0.75565]
[1750085128950,40.34183775,2646.1,2646.0,0.75564]
[1750085129453,0.75566,2646.0,2645.9,0.75565]
[1750085129640,0.75567,2645.9,2645.8,0.00566326]
[1750085129846,0.75572,2645.7,2645.6,3.96354]
[1750085130050,33.52392775,2645.7,2645.6,0.75574]
[1750085130351,0.75581,2645.5,2645.4,0.7558]
[1750085130552,24.486,2645.5,2645.4,0.7558]
[1750085130946,15.84194775,2645.7,2645.4,0.7558]
[1750085130947,8.27920775,2645.7,2645.6,0.75575]
[1750085131147,0.75575,2645.6,2645.5,3.2078]
[1750085131946,0.75578,2645.5,2645.4,0.75579]
[1750085132151,24.483,2645.5,2645.4,0.75581]
[1750085132348,25.2388,2645.5,2645.4,0.75581]
[1750085132760,24.483,2645.5,2645.4,0.75581]
[1750085133248,25.23878,2645.5,2645.4,0.75581]
[1750085133455,6.807,2645.7,2645.6,0.75573]
[1750085133653,40.32395775,2645.7,2645.6,0.75573]
[1750085133851,0.75579,2645.6,2645.5,0.75576]
[1750085134049,9.03499775,2645.6,2645.5,0.75576]
[1750085135359,32.75720775,2645.6,2645.5,0.75576]
[1750085135960,32.75520775,2645.6,2645.5,0.75576]
[1750085136253,1.05616244,3613.9,2645.5,0.75576]
[1750085136254,0.00566326,2646.2,2645.5,8.2078]
[1750085136456,0.00566326,2646.2,2646.1,0.75561]
[1750085138149,31.278,2646.6,2646.5,0.75549]
[1750085138357,6.807,2646.6,2646.5,3.96329]
[1750085138556,31.277,2646.6,2646.5,3.96329]
[1750085139154,0.00566326,2646.8,2646.7,0.75544]
[1750085139354,31.27966326,2646.8,2646.7,0.75544]
[1750085139558,0.00566326,2646.8,2646.7,0.75544]
[1750085139863,24.47166326,2646.8,2646.7,0.75544]
[1750085140654,0.00566326,2646.8,2646.7,0.75544]
[1750085140860,24.46866326,2646.8,2646.7,0.75544]
[1750085141056,0.76107326,2646.8,2646.7,0.75544]
[1750085141259,24.46766326,2646.8,2646.7,0.75544]
[1750085141658,0.00566326,2646.8,2646.7,0.75544]
[1750085143072,0.75522,2647.5,2647.4,0.75522]
[1750085143362,0.75515,2647.7,2647.6,0.75518]
[1750085143565,0.75525,2647.4,2647.3,0.75524]
[1750085143867,0.75523,2647.5,2647.4,0.75522]
[1750085144167,25.21582326,2647.7,2647.6,0.75518]
[1750085144469,0.00566326,2647.7,2647.6,3.96298]
[1750085144766,24.45966326,2647.7,2647.6,3.96298]
[1750085145167,0.00566326,2647.7,2647.6,3.96298]
[1750085147366,0.76081326,2647.7,2647.6,3.96298]
[1750085147669,0.00566326,2647.7,2647.6,3.96298]
[1750085147858,0.75497,2648.4,2648.3,0.75498]
[1750085148167,3.2078,2648.9,2648.5,0.7549]
[1750085148369,34.4498,2648.9,2648.2,3.2078]
[1750085148673,9.03415775,2648.4,2648.3,1.9189]
[1750085148965,9.03415775,2648.4,2648.3,0.6467]
[1750085149673,31.241,2648.5,2648.3,0.6467]
[1750085149674,31.99594,2648.5,2648.3,0.6467]
[1750085149970,6.77366326,2648.6,2648.5,0.75492]
[1750085150267,31.20866326,2648.6,2648.5,2.00092]
[1750085150468,31.20866326,2648.6,2648.3,0.6467]
[1750085150469,34.41646326,2648.6,2648.3,0.6467]
[1750085150668,9.03415775,2648.4,2648.3,0.6467]
[1750085151270,0.00566326,2648.6,2648.1,0.76069326]
[1750085151464,0.75499,2648.3,2648.2,0.75501]
[1750085151664,0.75496,2648.4,2648.3,0.75498]
[1750085151966,0.75495,2648.4,2648.3,0.75498]
[1750085152268,0.75495,2648.4,2648.2,1.246]
[1750085152269,0.75498,2648.3,2648.2,1.246]
[1750085152458,0.75498,2648.3,2648.2,2.00101]
[1750085152658,0.75498,2648.3,2648.2,1.246]
[1750085153070,9.03417775,2648.4,2648.2,2.00099]
[1750085153470,8.27920775,2648.4,2648.3,0.75498]
[1750085153669,31.192,2648.4,2648.3,1.2801]
[1750085153869,31.94695,2648.4,2648.3,1.2801]
[1750085154373,31.94695,2648.4,2648.3,2.03508]
[1750085154768,31.192,2648.4,2648.3,2.03508]
[1750085154977,0.00566326,2648.6,2648.5,0.75492]
[1750085155270,6.77266326,2648.6,2648.5,0.75492]
[1750085155476,0.00566326,2648.6,2648.5,0.75492]
[1750085156176,0.00566326,2648.6,2648.5,0.76540981]
[1750085156981,0.00566326,2648.6,2648.5,0.01048981]
[1750085157274,8.28487101,2648.6,2648.5,0.01048981]
[1750085157572,1.308,2649.2,2648.8,0.75483]
[1750085157573,8.27920775,2649.2,2648.8,0.75483]
[1750085157876,0.75478,2649.0,2648.9,2.05689]
[1750085158177,0.75478,2649.0,2648.9,1.31258981]
[1750085158569,31.176,2649.0,2648.9,0.76529981]
[1750085158876,0.00566326,2649.2,2649.1,0.75475]
[1750085159075,31.17966326,2649.2,2649.1,0.75475]
[1750085159273,0.00566326,2649.2,2649.1,0.76523981]
[1750085160071,0.76038326,2649.2,2649.1,0.01048981]
[1750085160277,31.92938326,2649.2,2649.1,0.01048981]
[1750085160477,33.16248326,2649.2,2649.1,0.01048981]
[1750085160975,33.16248326,2649.2,2648.4,3.2078]
[1750085160976,1.88697,2649.0,2648.4,3.2078]
[1750085161171,8.27920775,2648.6,2648.5,0.75492]
[1750085161478,25.15691,2648.6,2648.5,0.75492]
[1750085161673,25.15591,2648.6,2648.5,0.75492]
[1750085161976,0.75492,2648.5,2648.4,3.96273]
[1750085162176,0.75487,2648.7,2648.6,0.75489]
[1750085162371,31.91887,2648.7,2648.6,0.75489]
[1750085162873,31.91887,2648.7,2648.5,0.7549]
[1750085162874,0.75491,2648.6,2648.5,0.7549]
[1750085163179,0.75491,2648.6,2648.5,0.77587962]
[1750085163475,8.27920775,2648.6,2648.5,0.77587962]
[1750085163772,33.43009775,2648.6,2648.5,0.02097962]
[1750085164172,32.67520775,2648.6,2648.5,0.77589962]
[1750085164477,33.43009775,2648.6,2648.5,0.77589962]
[1750085164872,0.75488,2648.7,2648.6,0.75489]
[1750085165074,31.91288,2648.7,2648.6,0.77586962]
[1750085165478,31.91288,2648.7,2648.6,0.02097962]
[1750085167467,31.91288,2648.7,2648.2,1.4205]
[1750085167468,0.75498,2648.3,2648.2,1.4205]
[1750085167669,31.153,2648.3,2648.2,0.75501]
[1750085167872,31.90798,2648.3,2648.2,0.75501]
[1750085168279,0.75501,2648.2,2648.1,0.76068326]
[1750085168674,9.03421775,2648.2,2648.1,0.00566326]
[1750085168979,9.03421775,2648.2,2646.7,47.2732]
[1750085168980,0.75521,2647.5,2647.4,3.8687]
[1750085169176,24.385,2647.5,2647.4,4.62391]
[1750085169380,25.14021,2647.5,2647.4,4.62391]
[1750085169573,0.75524,2647.4,2647.3,0.75525]
[1750085169971,0.75527,2647.3,2647.2,0.75528]
[1750085170183,0.75529,2647.2,2647.1,1.37566326]
[1750085170380,25.13829,2647.2,2647.1,0.62036326]
[1750085170682,24.383,2647.2,2647.1,1.37568326]
[1750085170878,25.13829,2647.2,2647.1,0.62036326]
[1750085171083,24.383,2647.2,2647.1,1.37568326]
[1750085171275,25.13829,2647.2,2647.1,1.37568326]
[1750085171575,24.383,2647.2,2647.1,1.37568326]
[1750085172080,25.13829,2647.2,2647.1,1.37568326]
[1750085172271,24.383,2647.2,2647.1,1.37568326]
[1750085172471,0.76086326,2647.6,2647.4,0.75522]
[1750085172678,25.36122403,2647.5,2647.4,0.75522]
[1750085172980,26.11644403,2647.5,2647.4,0.75524]
[1750085173186,25.36122403,2647.5,2647.4,0.75524]
[1750085173382,0.00566326,2647.6,2647.5,0.75521]
[1750085173683,31.15066326,2647.6,2647.1,0.62036326]
[1750085173976,8.27920775,2647.2,2647.1,0.00566326]
[1750085174179,8.27920775,2647.2,2647.1,0.76098326]